﻿Department family,Entity,Date,Expense type,Expense area,Supplier,Transaction number,Amount,Description,Supplier Postcode,DA
Families & Specialist Services,Radiology,15/12/2023,Contractual Clinical Services,Rad General,4 Ways Healthcare Ltd,4WHC/07240008,"30,972.46 ",Teleradiology Reporting,HP2 7BF,
Families & Specialist Services,Radiology,29/12/2023,Contractual Clinical Services,Rad General,4 Ways Healthcare Ltd,4WHC/08240008,"34,433.14 ",Teleradiology Reporting,HP2 7BF,
Balance Sheet,L2 Current Assets,08/12/2023,Finished Processed Goods,Stock & Work In Progress,Alliance Healthcare Distribution Ltd,F36F51292,"53,967.84 ",Pharmaceutical purchase,KT9 1SN,
Pmu,Pmu,06/12/2023,Drugs,Pmu,Alliance Healthcare Distribution Ltd,F3B754897,"32,590.30 ",Pharmaceutical purchase,KT9 1SN,
Balance Sheet,L2 Current Assets,06/12/2023,Finished Processed Goods,Stock & Work In Progress,Alliance Healthcare Distribution Ltd,F3B756445,"67,459.80 ",Pharmaceutical purchase,KT9 1SN,
Balance Sheet,L2 Current Assets,15/12/2023,Finished Processed Goods,Stock & Work In Progress,Alliance Healthcare Distribution Ltd,F3BH56243,"67,459.80 ",Pharmaceutical purchase,KT9 1SN,
Balance Sheet,L2 Current Assets,29/12/2023,Finished Processed Goods,Stock & Work In Progress,Alliance Healthcare Distribution Ltd,F3BT56637,"67,604.12 ",Pharmaceutical purchase,KT9 1SN,
Balance Sheet,L2 Current Assets,08/12/2023,Finished Processed Goods,Stock & Work In Progress,Alloga Uk Ltd,SIN200047748,"27,000.00 ",Pharmaceutical purchase,DE55 2FH,
Balance Sheet,L2 Long Term Creditors,22/12/2023,Lease Liabilities under IFRS 16 > 1 year,Finance Leases,Assura Medical Centres Ltd,LINV60023,"29,100.00 ",Todmorden Health Centre Rent from 1.4.23 to 31.7.23,WA4 6HL,
CHS Estates,L2 Estates,22/12/2023,Contract : Other External,Medical Physics,B Braun Sterilog (Yorkshire) Ltd,328747135,"197,056.07 ",Decontamination Services for Surgical & Podiatry,S35 2PW,
Balance Sheet,L2 Current Assets,01/12/2023,Finished Processed Goods,Stock & Work In Progress,Bayer Plc,824C529033,"27,373.68 ",Pharmaceutical purchase,RG2 6AD,
Balance Sheet,L2 Current Assets,13/12/2023,Finished Processed Goods,Stock & Work In Progress,Bayer Plc,824C530696,"27,373.68 ",Pharmaceutical purchase,RG2 6AD,
Balance Sheet,L2 Current Assets,22/12/2023,Finished Processed Goods,Stock & Work In Progress,Bayer Plc,824C534023,"27,373.68 ",Pharmaceutical purchase,RG2 6AD,
Balance Sheet,L2 Current Assets,29/12/2023,Finished Processed Goods,Stock & Work In Progress,Bayer Plc,824C535218,"114,057.00 ",Pharmaceutical purchase,RG2 6AD,
Balance Sheet,L2 Current Assets,29/12/2023,Finished Processed Goods,Stock & Work In Progress,Bayer Plc,824C535431,"27,373.68 ",Pharmaceutical purchase,RG2 6AD,
Medical Division,Emergency Medicine,08/12/2023,Healthcare From Local Authorities,A&E Nursing,Bradford Children and Families Trust Limited,54,"43,500.00 ",BLOSM contract with Breaking the Cycle Youth Worker provision April 23 - June 23. ,BD5 0QL,
Balance Sheet,L2 Current Assets,15/12/2023,Finished Processed Goods,Stock & Work In Progress,Bristol Myers Squibb Pharmaceuticals Ltd,100733173,"26,096.33 ",Pharmaceutical purchase,CH4 9QW,
Surgery & Anaesthetics,Surgical Divisional Support,01/12/2023,Healthcare From Commercial Sector,Elective Recovery,Calderdale And Huddersfield Orthopaedic Partnership Llp,INV-0104,"75,000.00 ",Provision of Orthopaedic and/or Specialty Healthcare Services,LS8 2JH,
Corporate Services,Service Performance,20/12/2023,Contract : Other External,Pfi,Calderdale Hospital Spc Ltd,CASI133,"3,449,836.54 ",PFI contract monthly payment,M20 2YY,
Corporate Services,Service Performance,13/12/2023,External Contracts : Other Hotel Services,Pfi,Calderdale Hospital Spc Ltd,CASI134,"53,774.04 ",Additional variations,M20 2YY,
Corporate Services,Service Performance,13/12/2023,Minor Works,Pfi,Calderdale Hospital Spc Ltd,CASI138,"97,895.10 ",Pharmacy Robot transaction costs recharge,M20 2YY,
Corporate Services,Service Performance,15/12/2023,Minor Works,Pfi,Calderdale Hospital Spc Ltd,CASI139,"227,438.96 ",New Works Instructions,M20 2YY,
Corporate Services,Service Performance,29/12/2023,Rates,Properties,Calderdale Metropolitan Borough Council,25202391017613,"77,440.00 ",Council Tax for Calderdale Royal Hospital,HX1 1TP,
Corporate Services,Service Performance,01/12/2023,Rates,Properties,Calderdale Metropolitan Borough Council,25202391017613,"77,440.00 ",Council Tax for Calderdale Royal Hospital,HX1 1TP,
Families & Specialist Services,Womens,29/12/2023,Healthcare From Commercial Sector,Gynaecology,CARE Leeds,500020,"25,588.00 ",IVF Services,LS14 6UH,
Corporate Services,Corporate Services,05/12/2023,Professional Fees,Corporate Services,Care Quality Commission,43323876,"35,636.00 ",Annual Fee: NHS Trusts - based on operating revenue. Please see Guidance for Providers: Fees.,LS11 1HP,
Balance Sheet,L2 Long Term Creditors,08/12/2023,Lease Liabilities under IFRS 16 > 1 year,Finance Leases,Chg-Meridian Uk Ltd,7116088,"41,016.70 ",LP00244 - C78485 - 18 Month Extension of Philips MRI Scanner period 12/12/2023 until 11/03/2024,TW20 9AB,
Balance Sheet,L2 Current Assets,13/12/2023,Finished Processed Goods,Stock & Work In Progress,Csl Behring Uk Ltd,994061922,"49,432.50 ",Pharmaceutical purchase,RH16 1AH,
CHS Estates,L2 Estates,29/12/2023,Computer Software / License Fees,Management Estates,DH OpCo UK Ltd,HGB-SI23000842,"32,365.55 ",Provision & support of the i.Labs system. Year 4: 01/01/2024 – 31/12/ 2024 ,GU11 1PZ,
Medical Division,Medical Divisional Management,01/12/2023,Contractual Clinical Services,Medical Divisional Management Support Services,Gutcare.Org Ltd,65A(NEURO),"53,129.50 ","Insourcing Neurology services	",RM11 2EZ,
Medical Division,Medical Specialities,01/12/2023,Contractual Clinical Services,Gastroenterology,Gutcare.Org Ltd,66B(GASTRO),"35,505.00 ","Insourcing Gastroenterology Respiratory and Cardiology services	",RM11 2EZ,
Corporate Services,Quality,29/12/2023,Computer Software / License Fees,Quality,Inphase Ltd,INPUK5333,"136,584.00 ",InPhase Incident Management System - Year One Licensing & Implementation Costs,SL2 4JS,
Balance Sheet,Fixed Assets,20/12/2023,Additions - Assets Under Construction,Capital (Fss),Integrated Health Projects,23120039,"275,693.17 ",BROADSTREET CDC - PROPOSAL TO DESIGN  AND REFURBISHMENT TO CREATE A COMMUNITY DIAGNOSTICS CENTRE,WD24 4WW,
Central & Technical,Tech Accounting,29/12/2023,Contract : Other External,Tech Accounting,Iss Mediclean Ltd,SI3572117,"960,000.00 ",Calderdale 2028 exit agreement - PFI Calderdale Royal Hospital,KT13 0SL,
CHS Estates,L2 Estates,01/12/2023,Rates,Estates Operations,Kirklees Council,969286425_2023,"56,051.00 ",Council Tax for Huddersfield Royal Infirmary for 23/24,HD1 2NF,
Balance Sheet,L2 Long Term Creditors,22/12/2023,Lease Liabilities under IFRS 16 > 1 year,Finance Leases,Landa Asset Management PLC,38264,"25,072.50 ",Beechwood Health Centre Rent 25/12/2023 - 24/03/2024,NW1 3BG,
Pmu,Pmu,13/12/2023,Insurance Costs,Pmu,MFL Insurance Group Ltd,527724688,"34,871.20 ",MFL Insurance Renewal for Huddersfield Pharmacy Specials16/10/2023 - 15/10/2024,M1 3DZ,
Recharges,Recharges,22/12/2023,Healthcare From NHS Trusts,Recharges,Mid Yorkshire Teaching NHS Trust,1600025072,"62,059.68 ",Various services provided by agreement as per West Yorkshire Association of Acute Trusts agreed methodology,WF1 4DG,
Balance Sheet,Fixed Assets,01/12/2023,Other Debtors < One Year,CAPITAL (Reconfig CRH),Mott Macdonald Ltd,100565852,"41,952.60 ",Calderdale Royal Hospital ENABLING WORKS - RECONFIGURATION ENGINEERING CONSULTANCY SERVICES,S1 2JY,
Families & Specialist Services,Pathology,15/12/2023,Blood Products,Blood Sciences,NHS Blood And Transplant,7019712,"88,143.21 ",MONTHLY CONTRACT CHARGE BLOOD & COMPONENTS,LS15 7TW,
Families & Specialist Services,Pathology,15/12/2023,Blood Products,Blood Sciences,NHS Blood And Transplant,7019713,"31,648.12 ",MONTHLY CONTRACT CHARGE BLOOD & COMPONENTS,LS15 7TW,
Corporate Services,Service Performance,15/12/2023,Contract : Other External,Properties,NHS Property Services Ltd,758047,"-35,597.49 ",Service Charge On Account 01-Apr-2023 30-Jun-2023,EC2V 7NG,
Corporate Services,Service Performance,15/12/2023,Contract : Other External,Properties,NHS Property Services Ltd,758047,"-35,597.49 ",Service Charge On Account 01-Jul-2023 30-Sep-2023,EC2V 7NG,
Corporate Services,Service Performance,15/12/2023,Contract : Other External,Properties,NHS Property Services Ltd,758047,"-35,597.49 ",Service Charge On Account 01-Oct-2023 31-Dec-2023,EC2V 7NG,
Corporate Services,Service Performance,15/12/2023,Contract : Other External,Properties,NHS Property Services Ltd,H129538,"60,997.77 ",FM Balancing Charge 4/1/2017 To 3/31/2018 Property: 10007310 Lease:St.Johns Health Centre 30005341,EC2V 7NG,
Corporate Services,Quality,15/12/2023,Clinical Negligence,Quality,NHS Resolution,SICX414438,"843,190.75 ",Clinical Negligence provision,SW1W 9SZ,
Families & Specialist Services,Womens,15/12/2023,Clinical Negligence,Womens Management,NHS Resolution,SICX414438,"20,948.60 ",Clinical Negligence provision,SW1W 9SZ,
Corporate Services,Quality,15/12/2023,Insurance Costs,Quality,NHS Resolution,SICX414438,"904,894.45 ",Clinical Negligence provision,SW1W 9SZ,
CHS Balance Sheet,Current Liabilities,01/12/2023,Non- NHS Trade Creditors < One Year,Other Creditors,NHS Supply Chain,1124210903,"141,061.86 ",Goods delivered week ending 03-Nov-2023,DE55 4QJ,
CHS Balance Sheet,Current Liabilities,01/12/2023,Non- NHS Trade Creditors < One Year,Other Creditors,NHS Supply Chain,1124211707,"201,977.78 ",Goods delivered week ending 03-Nov-2023,DE55 4QJ,
CHS Balance Sheet,Current Liabilities,08/12/2023,Non- NHS Trade Creditors < One Year,Other Creditors,NHS Supply Chain,1124216301,"144,040.05 ",Goods delivered week ending 10-Nov-2023,DE55 4QJ,
CHS Balance Sheet,Current Liabilities,08/12/2023,Non- NHS Trade Creditors < One Year,Other Creditors,NHS Supply Chain,1124221083,"148,794.06 ",Goods delivered week ending 10-Nov-2023,DE55 4QJ,
CHS Balance Sheet,Current Liabilities,15/12/2023,Non- NHS Trade Creditors < One Year,Other Creditors,NHS Supply Chain,1124224763,"156,189.81 ",Goods delivered week ending 17-Nov-2023,DE55 4QJ,
CHS Balance Sheet,Current Liabilities,15/12/2023,Non- NHS Trade Creditors < One Year,Other Creditors,NHS Supply Chain,1124228265,"246,535.06 ",Goods delivered week ending 17-Nov-2023,DE55 4QJ,
CHS Balance Sheet,Current Liabilities,22/12/2023,Non- NHS Trade Creditors < One Year,Other Creditors,NHS Supply Chain,1124232050,"146,573.89 ",Goods delivered week ending 24-Nov-2023,DE55 4QJ,
CHS Estates,L2 Estates,01/12/2023,Med Surg Eqpt Mtce Contracts,Management Estates,NHS Supply Chain - Maintenance,2124005504,"35,195.24 ",Fully Comprehensive Maintenance for Kodak DR 7500 listed as system K46107351 and its associated components,DE55 4QJ,
CHS Estates,L2 Estates,15/12/2023,Med Surg Eqpt Mtce Contracts,Management Estates,NHS Supply Chain - Maintenance,2124005989,"25,919.54 ",Maintenance for Cardiac Patient Monitoring & Recording equipment. Lifecards & Cardiocalls as per quote ,DE55 4QJ,
CHS Estates,L2 Estates,29/12/2023,Med Surg Eqpt Mtce Contracts,Management Estates,NHS Supply Chain - Maintenance,2124006380,"82,092.00 ",Uptime Maintenance Contract for Philips Ingenia 1.5T MRI Scanner,DE55 4QJ,
CHS Estates,L2 Estates,29/12/2023,Med Surg Eqpt Mtce Contracts,Management Estates,NHS Supply Chain - Maintenance,2124006381,"82,092.00 ",Uptime Maintenance Contract for Philips Ingenia 1.5T MRI Scanner,DE55 4QJ,
CHS Estates,L2 Estates,29/12/2023,Professional Fees,Estates Operations,NIFES Property Limited,696-3564,"45,864.00 ",S - Huddersfield Royal Infirmary - Six Facet Survey Risk Assessment of Backlog Maintenance ,NN4 7XD,
Balance Sheet,L2 Current Assets,01/12/2023,Other Debtors < One Year,Other Debtors,Northumbria Healthcare NHS Foundation Trust,7510630666,"39,353.75 ",Leaseed vehicles,NE27 0QJ,
Corporate Services,Finance,29/12/2023,Computer Software / License Fees,Finance,Northumbria Healthcare NHS Foundation Trust,7550006940,"23,965.90 ",Oracle Cloud Finance System monthly cost,NE27 0QJ,
Balance Sheet,L2 Long Term Creditors,22/12/2023,Lease Liabilities under IFRS 16 > 1 year,Finance Leases,Pennine Property Partnership Llp,LINV60134,"227,979.60 ",Acre Mill Z Block Rent for 23-24,WA4 6HL,
Corporate Services,Service Performance,15/12/2023,Contract : Other External,Properties,Pennine Property Partnership Llp,SINV4101,"55,066.34 ",Service Charge Recharge - November 2023,WA4 6HL,
Health Informatics,Service Delivery,13/12/2023,Computer Hardware Purchases,Service Delivery,Phoenix Software Ltd,OP/I988247,"139,376.33 ",Dell - 1 Year Pro Support Renewal (Phase 2) - Licence,YO42 1NS,
Surgery & Anaesthetics,Surgical Divisional Support,06/12/2023,Healthcare From Commercial Sector,Support Services,Pioneer Healthcare Ltd,1412,"47,292.39 ",Insourcing Services August 2023 ENT Outpatients & Audiology,S10 5UB,
Balance Sheet,L2 Current Assets,29/12/2023,Finished Processed Goods,Stock & Work In Progress,Roche Products Ltd,1322307173,"33,288.00 ",Pharmaceutical purchase,AL7 1TW,
Balance Sheet,L2 Current Assets,29/12/2023,Finished Processed Goods,Stock & Work In Progress,Roche Products Ltd,1322307686,"85,728.00 ",Pharmaceutical purchase,AL7 1TW,
Balance Sheet,L2 Current Assets,29/12/2023,Finished Processed Goods,Stock & Work In Progress,Roche Products Ltd,1322309848,"85,728.00 ",Pharmaceutical purchase,AL7 1TW,
Balance Sheet,L2 Current Assets,29/12/2023,Finished Processed Goods,Stock & Work In Progress,Roche Products Ltd,1322310063,"33,744.00 ",Pharmaceutical purchase,AL7 1TW,
Balance Sheet,L2 Current Assets,29/12/2023,Finished Processed Goods,Stock & Work In Progress,Roche Products Ltd,1322310824,"29,327.11 ",Pharmaceutical purchase,AL7 1TW,
CHS Estates,L2 Estates,06/12/2023,Electricity,Estates Operations,Smartest Energy Limited,IN1101080853,"235,860.61 ",Mains electricity Calderdale Royal Hospital ,E14 4HD,
CHS Estates,L2 Estates,22/12/2023,Electricity,Estates Operations,Smartest Energy Limited,IN1101080854,"246,213.56 ",Mains electricity Calderdale Royal Hospital ,E14 4HD,
CHS Estates,L2 Estates,22/12/2023,Electricity,Estates Operations,Smartest Energy Limited,IN1101083396,"258,584.04 ",Mains electricity Calderdale Royal Hospital ,E14 4HD,
CHS Estates,L2 Estates,06/12/2023,Electricity,Estates Operations,Smartest Energy Limited,IN1101163376,"70,095.94 ",Mains Electricity Huddersfield Royal Infirmary,E14 4HD,
CHS Estates,L2 Estates,22/12/2023,Electricity,Estates Operations,Smartest Energy Limited,IN1101163377,"84,256.81 ",Mains Electricity Huddersfield Royal Infirmary,E14 4HD,
CHS Estates,L2 Estates,22/12/2023,Electricity,Estates Operations,Smartest Energy Limited,IN1101163378,"83,887.80 ",Mains Electricity Huddersfield Royal Infirmary,E14 4HD,
CHS Estates,L2 Estates,06/12/2023,Electricity,Estates Operations,Smartest Energy Limited,IN1101163382,"91,162.72 ",Mains Electricity Huddersfield Royal Infirmary,E14 4HD,
CHS Estates,L2 Estates,06/12/2023,Electricity,Estates Operations,Smartest Energy Limited,IN1101163392,"255,018.55 ",Mains Electricity Huddersfield Royal Infirmary,E14 4HD,
Balance Sheet,Fixed Assets,29/12/2023,Additions - Assets Under Construction,Capital (His),Softcat Plc,INVUK1109442,"27,384.24 ",Lenovo ThinkVision T24m-29.,SL7 1TB,
Balance Sheet,Fixed Assets,29/12/2023,Additions - Assets Under Construction,Capital (His),Softcat Plc,INVUK1112805,"78,066.00 ",Lenovo ThinkCentre Tiny-In-One 24,SL7 1TB,
Health Informatics,Corporate And Operations,29/12/2023,Computer Software / License Fees,It Support,Softcat Plc,INVUK1114696,"78,000.00 ",Andor - Virtual Visit Mode. Strategic partnership benefits  reduced price £65 000p/a for 3 year contract  to Sept 2024 ,SL7 1TB,
CHS Estates,L2 Estates,08/12/2023,Domestic Waste,Estates Operations,Suez Recycling & Recovery UK Ltd,33068854,"10,242.32",Collection of mixed waste streams from Huddersfield Royal Infirmary.from 1st July 2023 to 31st March 2024.,BS22 6WA,
CHS Estates,L2 Estates,08/12/2023,Domestic Waste,Estates Operations,Suez Recycling & Recovery UK Ltd,33068854,"12,359.07",Collection of mixed waste streams from Calderdale Royal Hospitalfrom 1st July 2023 to 31st March 2024.,BS22 6WA,
CHS Estates,L2 Estates,08/12/2023,Domestic Waste,Estates Operations,Suez Recycling & Recovery UK Ltd,33068854,589.81,Collection of mixed waste streams from Acre Mill Outpatients.from 1st July 2023 to 31st March 2024.,BS22 6WA,
CHS Estates,L2 Estates,08/12/2023,Domestic Waste,Estates Operations,Suez Recycling & Recovery UK Ltd,33068854,72.62,Collection of mixed waste streams from Allan House Clinic  from 1st July 2023 to 31st March 2024.,BS22 6WA,
CHS Estates,L2 Estates,08/12/2023,Domestic Waste,Estates Properties,Suez Recycling & Recovery UK Ltd,33068854,106.94,Collection of mixed waste streams from Beechwood Health Centre.from 1st July 2023 to 31st March 2024.,BS22 6WA,
CHS Estates,L2 Estates,08/12/2023,Domestic Waste,Estates Operations,Suez Recycling & Recovery UK Ltd,33068854,182.18,Collection of mixed waste streams from Brighouse Health Centre.from 1st July 2023 to 31st March 2024.,BS22 6WA,
CHS Estates,L2 Estates,08/12/2023,Domestic Waste,Estates Operations,Suez Recycling & Recovery UK Ltd,33068854,877.92,Collection of mixed waste streams from Elland Equipment Store.from 1st July 2023 to 31st March 2024.,BS22 6WA,
CHS Estates,L2 Estates,08/12/2023,Domestic Waste,Estates Operations,Suez Recycling & Recovery UK Ltd,33068854,848.21,Collection of mixed waste streams from Huddersfield Pharmacy Specialist Unitfrom 1st July 2023 to 31st March 2024.,BS22 6WA,
CHS Facilities,L2 Facilities,08/12/2023,Domestic Waste,Domestics,Suez Recycling & Recovery UK Ltd,33068854,91.08,Collection of mixed waste streams from Rainbow Child Development Unit.from 1st July 2023 to 31st March 2024.,BS22 6WA,
CHS Estates,L2 Estates,08/12/2023,Domestic Waste,Estates Properties,Suez Recycling & Recovery UK Ltd,33068854,"1,432.92",Collection of mixed waste streams from Renal Dialysisfrom 1st July 2023 to 31st March 2024.,BS22 6WA,
CHS Estates,L2 Estates,08/12/2023,Domestic Waste,Estates Operations,Suez Recycling & Recovery UK Ltd,33068854,91.08,Collection of mixed waste streams from Park Valley Mills from 1st July 2023 to 31st March 2024.,BS22 6WA,
CHS Facilities,L2 Facilities,08/12/2023,Domestic Waste,Domestics,Suez Recycling & Recovery UK Ltd,33068854,94.32,Collection of mixed waste streams from Westgate House  Halifax.from 1st July 2023 to 31st March 2024.,BS22 6WA,
CHS Estates,L2 Estates,08/12/2023,Domestic Waste,Estates Operations,Suez Recycling & Recovery UK Ltd,33095147,"10,566.93",Collection of mixed waste streams from Huddersfield Royal Infirmary.from 1st July 2023 to 31st March 2024.,BS22 6WA,
CHS Estates,L2 Estates,08/12/2023,Domestic Waste,Estates Operations,Suez Recycling & Recovery UK Ltd,33095147,"10,943.42",Collection of mixed waste streams from Calderdale Royal Hospitalfrom 1st July 2023 to 31st March 2024.,BS22 6WA,
CHS Estates,L2 Estates,08/12/2023,Domestic Waste,Estates Operations,Suez Recycling & Recovery UK Ltd,33095147,581.34,Collection of mixed waste streams from Acre Mill Outpatients.from 1st July 2023 to 31st March 2024.,BS22 6WA,
CHS Estates,L2 Estates,08/12/2023,Domestic Waste,Estates Operations,Suez Recycling & Recovery UK Ltd,33095147,72.62,Collection of mixed waste streams from Allan House Clinic  from 1st July 2023 to 31st March 2024.,BS22 6WA,
CHS Estates,L2 Estates,08/12/2023,Domestic Waste,Estates Properties,Suez Recycling & Recovery UK Ltd,33095147,131.08,Collection of mixed waste streams from Beechwood Health Centre.from 1st July 2023 to 31st March 2024.,BS22 6WA,
CHS Estates,L2 Estates,08/12/2023,Domestic Waste,Estates Operations,Suez Recycling & Recovery UK Ltd,33095147,182.18,Collection of mixed waste streams from Brighouse Health Centre.from 1st July 2023 to 31st March 2024.,BS22 6WA,
CHS Estates,L2 Estates,08/12/2023,Domestic Waste,Estates Operations,Suez Recycling & Recovery UK Ltd,33095147,877.92,Collection of mixed waste streams from Elland Equipment Store.from 1st July 2023 to 31st March 2024.,BS22 6WA,
CHS Estates,L2 Estates,08/12/2023,Domestic Waste,Estates Operations,Suez Recycling & Recovery UK Ltd,33095147,"1,109.23",Collection of mixed waste streams from Huddersfield Pharmacy Specialist Unitfrom 1st July 2023 to 31st March 2024.,BS22 6WA,
CHS Facilities,L2 Facilities,08/12/2023,Domestic Waste,Domestics,Suez Recycling & Recovery UK Ltd,33095147,91.08,Collection of mixed waste streams from Rainbow Child Development Unit.from 1st July 2023 to 31st March 2024.,BS22 6WA,
CHS Estates,L2 Estates,08/12/2023,Domestic Waste,Estates Properties,Suez Recycling & Recovery UK Ltd,33095147,"1,607.47",Collection of mixed waste streams from Renal Dialysisfrom 1st July 2023 to 31st March 2024.,BS22 6WA,
CHS Estates,L2 Estates,08/12/2023,Domestic Waste,Estates Operations,Suez Recycling & Recovery UK Ltd,33095147,91.08,Collection of mixed waste streams from Park Valley Mills from 1st July 2023 to 31st March 2024.,BS22 6WA,
CHS Facilities,L2 Facilities,08/12/2023,Domestic Waste,Domestics,Suez Recycling & Recovery UK Ltd,33095147,95.92,Collection of mixed waste streams from Westgate House  Halifax.from 1st July 2023 to 31st March 2024.,BS22 6WA,
CHS Estates,L2 Estates,08/12/2023,Domestic Waste,Estates Operations,Suez Recycling & Recovery UK Ltd,33123033,"11,123.17",Collection of mixed waste streams from Huddersfield Royal Infirmary.from 1st July 2023 to 31st March 2024.,BS22 6WA,
CHS Estates,L2 Estates,08/12/2023,Domestic Waste,Estates Operations,Suez Recycling & Recovery UK Ltd,33123033,"12,411.64",Collection of mixed waste streams from Calderdale Royal Hospitalfrom 1st July 2023 to 31st March 2024.,BS22 6WA,
CHS Estates,L2 Estates,08/12/2023,Domestic Waste,Estates Operations,Suez Recycling & Recovery UK Ltd,33123033,552.81,Collection of mixed waste streams from Acre Mill Outpatients.from 1st July 2023 to 31st March 2024.,BS22 6WA,
CHS Estates,L2 Estates,08/12/2023,Domestic Waste,Estates Operations,Suez Recycling & Recovery UK Ltd,33123033,72.62,Collection of mixed waste streams from Allan House Clinic  from 1st July 2023 to 31st March 2024.,BS22 6WA,
CHS Estates,L2 Estates,08/12/2023,Domestic Waste,Estates Properties,Suez Recycling & Recovery UK Ltd,33123033,106.58,Collection of mixed waste streams from Beechwood Health Centre.from 1st July 2023 to 31st March 2024.,BS22 6WA,
CHS Estates,L2 Estates,08/12/2023,Domestic Waste,Estates Operations,Suez Recycling & Recovery UK Ltd,33123033,203.23,Collection of mixed waste streams from Brighouse Health Centre.from 1st July 2023 to 31st March 2024.,BS22 6WA,
CHS Estates,L2 Estates,08/12/2023,Domestic Waste,Estates Operations,Suez Recycling & Recovery UK Ltd,33123033,"1,139.09",Collection of mixed waste streams from Elland Equipment Store.from 1st July 2023 to 31st March 2024.,BS22 6WA,
CHS Estates,L2 Estates,08/12/2023,Domestic Waste,Estates Operations,Suez Recycling & Recovery UK Ltd,33123033,829.96,Collection of mixed waste streams from Huddersfield Pharmacy Specialist Unitfrom 1st July 2023 to 31st March 2024.,BS22 6WA,
CHS Facilities,L2 Facilities,08/12/2023,Domestic Waste,Domestics,Suez Recycling & Recovery UK Ltd,33123033,79.34,Collection of mixed waste streams from Rainbow Child Development Unit.from 1st July 2023 to 31st March 2024.,BS22 6WA,
CHS Estates,L2 Estates,08/12/2023,Domestic Waste,Estates Properties,Suez Recycling & Recovery UK Ltd,33123033,"1,388.52",Collection of mixed waste streams from Renal Dialysisfrom 1st July 2023 to 31st March 2024.,BS22 6WA,
CHS Estates,L2 Estates,08/12/2023,Domestic Waste,Estates Operations,Suez Recycling & Recovery UK Ltd,33123033,73.46,Collection of mixed waste streams from Park Valley Mills from 1st July 2023 to 31st March 2024.,BS22 6WA,
CHS Facilities,L2 Facilities,08/12/2023,Domestic Waste,Domestics,Suez Recycling & Recovery UK Ltd,33123033,94.44,Collection of mixed waste streams from Westgate House  Halifax.from 1st July 2023 to 31st March 2024.,BS22 6WA,
CHS Estates,L2 Estates,29/12/2023,Domestic Waste,Estates Operations,Suez Recycling & Recovery UK Ltd,33149727,"8,521.20",Collection of mixed waste streams from Huddersfield Royal Infirmary.from 1st July 2023 to 31st March 2024.,BS22 6WA,
CHS Estates,L2 Estates,29/12/2023,Domestic Waste,Estates Operations,Suez Recycling & Recovery UK Ltd,33149727,"9,747.65",Collection of mixed waste streams from Calderdale Royal Hospitalfrom 1st July 2023 to 31st March 2024.,BS22 6WA,
CHS Estates,L2 Estates,29/12/2023,Domestic Waste,Estates Operations,Suez Recycling & Recovery UK Ltd,33149727,534.54,Collection of mixed waste streams from Acre Mill Outpatients.from 1st July 2023 to 31st March 2024.,BS22 6WA,
CHS Estates,L2 Estates,29/12/2023,Domestic Waste,Estates Operations,Suez Recycling & Recovery UK Ltd,33149727,67.78,Collection of mixed waste streams from Allan House Clinic  from 1st July 2023 to 31st March 2024.,BS22 6WA,
CHS Estates,L2 Estates,29/12/2023,Domestic Waste,Estates Properties,Suez Recycling & Recovery UK Ltd,33149727,98.00,Collection of mixed waste streams from Beechwood Health Centre.from 1st July 2023 to 31st March 2024.,BS22 6WA,
CHS Estates,L2 Estates,29/12/2023,Domestic Waste,Estates Operations,Suez Recycling & Recovery UK Ltd,33149727,314.10,Collection of mixed waste streams from Brighouse Health Centre.from 1st July 2023 to 31st March 2024.,BS22 6WA,
CHS Estates,L2 Estates,29/12/2023,Domestic Waste,Estates Operations,Suez Recycling & Recovery UK Ltd,33149727,992.16,Collection of mixed waste streams from Elland Equipment Store.from 1st July 2023 to 31st March 2024.,BS22 6WA,
CHS Estates,L2 Estates,29/12/2023,Domestic Waste,Estates Operations,Suez Recycling & Recovery UK Ltd,33149727,837.72,Collection of mixed waste streams from Huddersfield Pharmacy Specialist Unitfrom 1st July 2023 to 31st March 2024.,BS22 6WA,
CHS Facilities,L2 Facilities,29/12/2023,Domestic Waste,Domestics,Suez Recycling & Recovery UK Ltd,33149727,85.84,Collection of mixed waste streams from Rainbow Child Development Unit.from 1st July 2023 to 31st March 2024.,BS22 6WA,
CHS Estates,L2 Estates,29/12/2023,Domestic Waste,Estates Properties,Suez Recycling & Recovery UK Ltd,33149727,"1,570.83",Collection of mixed waste streams from Renal Dialysisfrom 1st July 2023 to 31st March 2024.,BS22 6WA,
CHS Estates,L2 Estates,29/12/2023,Domestic Waste,Estates Operations,Suez Recycling & Recovery UK Ltd,33149727,83.92,Collection of mixed waste streams from Park Valley Mills from 1st July 2023 to 31st March 2024.,BS22 6WA,
CHS Facilities,L2 Facilities,29/12/2023,Domestic Waste,Domestics,Suez Recycling & Recovery UK Ltd,33149727,83.76,Collection of mixed waste streams from Westgate House  Halifax.from 1st July 2023 to 31st March 2024.,BS22 6WA,
CHS Facilities,L2 Facilities,29/12/2023,External Contracts : Laundry,Laundry,Synergy Health Managed Services Ltd,50001534,"115,586.62 ",LAUNDRY SERVICE CONTRACT,WA9 5XH,
Community Division,Community Therapies,29/12/2023,Patients Appliances : Purchase,Patient Appliances,Taycare Medical Ltd,27118,"61,045.01 ",supply of specialist orthotic products,LS12 6LL,
Community Division,Community Therapies,29/12/2023,Patients Appliances : Purchase,Patient Appliances,Taycare Medical Ltd,27119,"52,618.35 ",supply of specialist orthotic products,LS12 6LL,
Families & Specialist Services,Radiology,29/12/2023,Contractual Clinical Services,Rad General,Telemedicine Clinic Ltd,20230584,"140,633.22 ",Outsourced Teleradiology Reporting ,B3 2RT,
Recharges,Recharges,29/12/2023,Healthcare From NHS Trusts,Recharges,The Leeds Teaching Hospitals NHS Trust,1410215976,"291,266.00 ",Various services provided by agreement as per West Yorkshire Association of Acute Trusts agreed methodology,LS9 7TF,
Recharges,Recharges,29/12/2023,Healthcare From NHS Trusts,Recharges,The Leeds Teaching Hospitals NHS Trust,1410218945,"291,266.00 ",Various services provided by agreement as per West Yorkshire Association of Acute Trusts agreed methodology,LS9 7TF,
CHS Facilities,L2 Facilities,13/12/2023,Contract : Premises Security,Security,The Leeds Teaching Hospitals NHS Trust,1410217732,"36,161.22 ",Security Contract,LS9 7TF,
Community Division,Community Therapies,29/12/2023,Interpreting Services,Adult Dieticians,TheBigWord Interpreting Services Limited,INV20277803,44.08,Interpreting Services,LS12 6AB,
Medical Division,Medical Specialities,29/12/2023,Interpreting Services,Cardiology,TheBigWord Interpreting Services Limited,INV20277803,610.42,Interpreting Services,LS12 6AB,
Medical Division,Medical Closed Account,29/12/2023,Interpreting Services,Closed Cost Centres,TheBigWord Interpreting Services Limited,INV20277803,146.61,Interpreting Services,LS12 6AB,
Community Division,Community Nursing,29/12/2023,Interpreting Services,Community Matrons,TheBigWord Interpreting Services Limited,INV20277803,251.8,Interpreting Services,LS12 6AB,
Families & Specialist Services,Childrens & Young Persons Services,29/12/2023,Interpreting Services,Community Paediatrics,TheBigWord Interpreting Services Limited,INV20277803,162.69,Interpreting Services,LS12 6AB,
Community Division,Community Therapies,29/12/2023,Interpreting Services,Ctr Therapies Outpatients,TheBigWord Interpreting Services Limited,INV20277803,8942.2,Interpreting Services,LS12 6AB,
Medical Division,Acute Medical,29/12/2023,Interpreting Services,Diabetes Endocrinology,TheBigWord Interpreting Services Limited,INV20277803,229.46,Interpreting Services,LS12 6AB,
Community Division,Community Nursing,29/12/2023,Interpreting Services,End Of Life & Palliative care,TheBigWord Interpreting Services Limited,INV20277803,37.38,Interpreting Services,LS12 6AB,
Surgery & Anaesthetics,Head & Neck,29/12/2023,Interpreting Services,Ent,TheBigWord Interpreting Services Limited,INV20277803,353.41,Interpreting Services,LS12 6AB,
Surgery & Anaesthetics,General Surgery,29/12/2023,Interpreting Services,General Surgery,TheBigWord Interpreting Services Limited,INV20277803,107.93,Interpreting Services,LS12 6AB,
Families & Specialist Services,Womens,29/12/2023,Interpreting Services,Gynaecology,TheBigWord Interpreting Services Limited,INV20277803,773.42,Interpreting Services,LS12 6AB,
Medical Division,Integrated Medical Specialities,29/12/2023,Interpreting Services,Ims Stroke / Rehabilitation,TheBigWord Interpreting Services Limited,INV20277803,48.88,Interpreting Services,LS12 6AB,
Community Division,Community Therapies,29/12/2023,Interpreting Services,Inpatient therapies,TheBigWord Interpreting Services Limited,INV20277803,43.19,Interpreting Services,LS12 6AB,
Medical Division,Integrated Medical Specialities,29/12/2023,Interpreting Services,Medical Oncology,TheBigWord Interpreting Services Limited,INV20277803,80.23,Interpreting Services,LS12 6AB,
Medical Division,Integrated Medical Specialities,29/12/2023,Interpreting Services,Neuro Sciences,TheBigWord Interpreting Services Limited,INV20277803,43.41,Interpreting Services,LS12 6AB,
Families & Specialist Services,Womens,29/12/2023,Interpreting Services,Obstetrics,TheBigWord Interpreting Services Limited,INV20277803,4774.65,Interpreting Services,LS12 6AB,
Surgery & Anaesthetics,Operating Services,29/12/2023,Interpreting Services,Operating Services,TheBigWord Interpreting Services Limited,INV20277803,3153.32,Interpreting Services,LS12 6AB,
Surgery & Anaesthetics,Head & Neck,29/12/2023,Interpreting Services,Ophthalmology,TheBigWord Interpreting Services Limited,INV20277803,1354.21,Interpreting Services,LS12 6AB,
Families & Specialist Services,Outpatients & Records Services,29/12/2023,Interpreting Services,Outpatients Dept,TheBigWord Interpreting Services Limited,INV20277803,2235.12,Interpreting Services,LS12 6AB,
Community Division,Community Therapies,29/12/2023,Interpreting Services,Paeds Physio / Ot,TheBigWord Interpreting Services Limited,INV20277803,46.89,Interpreting Services,LS12 6AB,
Surgery & Anaesthetics,Critical Care,29/12/2023,Interpreting Services,Pain Management,TheBigWord Interpreting Services Limited,INV20277803,52.62,Interpreting Services,LS12 6AB,
Families & Specialist Services,Radiology,29/12/2023,Interpreting Services,Rad General,TheBigWord Interpreting Services Limited,INV20277803,2315.22,Interpreting Services,LS12 6AB,
Total Trust,Surgery & Anaesthetics,29/12/2023,Interpreting Services,Surgical Closed Cost Centres,TheBigWord Interpreting Services Limited,INV20277803,985.11,Interpreting Services,LS12 6AB,
CHS Estates,L2 Estates,13/12/2023,Gas,Estates Operations,TotalEnergies Gas & Power Limited,307144986/23,"38,687.15 ",Mains Gas Huddersfield Royal Infirmary ,RH1 1RX,
CHS Estates,L2 Estates,01/12/2023,Gas,Estates Operations,TotalEnergies Gas & Power Limited,310697018/23,"38,084.35 ",Mains Gas Huddersfield Royal Infirmary ,RH1 1RX,
CHS Estates,L2 Estates,15/12/2023,Gas,Estates Operations,TotalEnergies Gas & Power Limited,321062032/23,"51,564.25 ",Mains Gas Huddersfield Royal Infirmary ,RH1 1RX,
Balance Sheet,L2 Current Assets,01/12/2023,Other Debtors < One Year,Other Debtors,Tuskerdirect Ltd,82396,"135,310.86 ",Salary Sacrifice cars,WD18 8YF,
Balance Sheet,L2 Current Assets,29/12/2023,Other Debtors < One Year,Other Debtors,Tuskerdirect Ltd,84540,"133,103.58 ",Salary Sacrifice cars,WD18 8YF,
Balance Sheet,Fixed Assets,15/12/2023,Additions - Assets Under Construction,Capital (Estates),Tutum Health Limited,1732,"48,450.00 ",SUPPLY AND INSTALLATION OF COOLNOMIX UNITS INCLUDING INSTALLATIONS THROUGHOUT Huddersfield Royal Infirmary AS PER YOUR QUOTE ,EC2A 2BU,
CHS Estates,L2 Estates,08/12/2023,Med Surg Eqpt Mtce Contracts,Management Estates,Varian Medical Systems Uk Ltd,602219363,"37,219.20 ",Varian ARIA MedOnc (HMO0171) Essentials Service & Interoperability - Essentials.,RH10 9RG,
Medical Division,Emergency Medicine,01/12/2023,B5 Agency Nursing,A&E Nursing,Your Nurse Ltd,EHCX64,5698.5,B5 Agency Nursing,E14 5RE,
Medical Division,Medical Specialities,01/12/2023,B5 Agency Nursing,Cardiology,Your Nurse Ltd,EHCX64,1346,B5 Agency Nursing,E14 5RE,
Surgery & Anaesthetics,Critical Care,01/12/2023,B5 Agency Nursing,Critical Care,Your Nurse Ltd,EHCX64,2073,B5 Agency Nursing,E14 5RE,
Medical Division,Medical Specialities,01/12/2023,B5 Agency Nursing,Gastroenterology,Your Nurse Ltd,EHCX64,910.5,B5 Agency Nursing,E14 5RE,
Medical Division,Acute Medical,01/12/2023,B5 Agency Nursing,General Medicine,Your Nurse Ltd,EHCX64,3934,B5 Agency Nursing,E14 5RE,
Surgery & Anaesthetics,General Surgery,01/12/2023,B5 Agency Nursing,General Surgery,Your Nurse Ltd,EHCX64,4597,B5 Agency Nursing,E14 5RE,
Medical Division,Acute Medical,01/12/2023,B5 Agency Nursing,Geriatric Medicine,Your Nurse Ltd,EHCX64,7807.5,B5 Agency Nursing,E14 5RE,
Medical Division,Integrated Medical Specialities,01/12/2023,B5 Agency Nursing,Ims Stroke / Rehabilitation,Your Nurse Ltd,EHCX64,5613.17,B5 Agency Nursing,E14 5RE,
Families & Specialist Services,Childrens & Young Persons Services,01/12/2023,B5 Agency Nursing,Inpatients Paediatrics,Your Nurse Ltd,EHCX64,3933,B5 Agency Nursing,E14 5RE,
Medical Division,Integrated Medical Specialities,01/12/2023,B5 Agency Nursing,Medical Oncology,Your Nurse Ltd,EHCX64,422,B5 Agency Nursing,E14 5RE,
Surgery & Anaesthetics,Operating Services,01/12/2023,B5 Agency Nursing,Operating Services,Your Nurse Ltd,EHCX64,1611,B5 Agency Nursing,E14 5RE,
Medical Division,Medical Specialities,01/12/2023,B5 Agency Nursing,Respiratory,Your Nurse Ltd,EHCX64,3503.5,B5 Agency Nursing,E14 5RE,
Surgery & Anaesthetics,Orthopaedics,01/12/2023,B5 Agency Nursing,Trauma & Orthopaedics,Your Nurse Ltd,EHCX64,2298.5,B5 Agency Nursing,E14 5RE,
Medical Division,Emergency Medicine,01/12/2023,B5 Agency Nursing,A&E Nursing,Your Nurse Ltd,EHCX65,2830.5,B5 Agency Nursing,E14 5RE,
Surgery & Anaesthetics,General Surgery,01/12/2023,B5 Agency Nursing,Endoscopy,Your Nurse Ltd,EHCX65,1279,B5 Agency Nursing,E14 5RE,
Medical Division,Medical Specialities,01/12/2023,B5 Agency Nursing,Gastroenterology,Your Nurse Ltd,EHCX65,1308.17,B5 Agency Nursing,E14 5RE,
Medical Division,Acute Medical,01/12/2023,B5 Agency Nursing,General Medicine,Your Nurse Ltd,EHCX65,3064.5,B5 Agency Nursing,E14 5RE,
Surgery & Anaesthetics,General Surgery,01/12/2023,B5 Agency Nursing,General Surgery,Your Nurse Ltd,EHCX65,4085.5,B5 Agency Nursing,E14 5RE,
Medical Division,Acute Medical,01/12/2023,B5 Agency Nursing,Geriatric Medicine,Your Nurse Ltd,EHCX65,4251,B5 Agency Nursing,E14 5RE,
Medical Division,Integrated Medical Specialities,01/12/2023,B5 Agency Nursing,Ims Stroke / Rehabilitation,Your Nurse Ltd,EHCX65,2282,B5 Agency Nursing,E14 5RE,
Medical Division,Integrated Medical Specialities,01/12/2023,B5 Agency Nursing,Medical Oncology,Your Nurse Ltd,EHCX65,440,B5 Agency Nursing,E14 5RE,
Medical Division,Medical Specialities,01/12/2023,B5 Agency Nursing,Respiratory,Your Nurse Ltd,EHCX65,444.5,B5 Agency Nursing,E14 5RE,
Surgery & Anaesthetics,Orthopaedics,01/12/2023,B5 Agency Nursing,Trauma & Orthopaedics,Your Nurse Ltd,EHCX65,2540.5,B5 Agency Nursing,E14 5RE,
Medical Division,Emergency Medicine,01/12/2023,B5 Agency Nursing,A&E Nursing,Your Nurse Ltd,EHCX67,2353.5,B5 Agency Nursing,E14 5RE,
Surgery & Anaesthetics,Critical Care,01/12/2023,B5 Agency Nursing,Critical Care,Your Nurse Ltd,EHCX67,279,B5 Agency Nursing,E14 5RE,
Surgery & Anaesthetics,General Surgery,01/12/2023,B5 Agency Nursing,Endoscopy,Your Nurse Ltd,EHCX67,1263.5,B5 Agency Nursing,E14 5RE,
Medical Division,Medical Specialities,01/12/2023,B5 Agency Nursing,Gastroenterology,Your Nurse Ltd,EHCX67,2103.33,B5 Agency Nursing,E14 5RE,
Medical Division,Acute Medical,01/12/2023,B5 Agency Nursing,General Medicine,Your Nurse Ltd,EHCX67,2732.5,B5 Agency Nursing,E14 5RE,
Surgery & Anaesthetics,General Surgery,01/12/2023,B5 Agency Nursing,General Surgery,Your Nurse Ltd,EHCX67,2363.5,B5 Agency Nursing,E14 5RE,
Medical Division,Acute Medical,01/12/2023,B5 Agency Nursing,Geriatric Medicine,Your Nurse Ltd,EHCX67,3185,B5 Agency Nursing,E14 5RE,
Medical Division,Integrated Medical Specialities,01/12/2023,B5 Agency Nursing,Ims Stroke / Rehabilitation,Your Nurse Ltd,EHCX67,7022.67,B5 Agency Nursing,E14 5RE,
Medical Division,Integrated Medical Specialities,01/12/2023,B5 Agency Nursing,Medical Oncology,Your Nurse Ltd,EHCX67,422,B5 Agency Nursing,E14 5RE,
Corporate Services,Quality,01/12/2023,B5 Agency Nursing,Quality,Your Nurse Ltd,EHCX67,422,B5 Agency Nursing,E14 5RE,
Medical Division,Medical Specialities,01/12/2023,B5 Agency Nursing,Respiratory,Your Nurse Ltd,EHCX67,1281.17,B5 Agency Nursing,E14 5RE,
Surgery & Anaesthetics,Orthopaedics,01/12/2023,B5 Agency Nursing,Trauma & Orthopaedics,Your Nurse Ltd,EHCX67,888.5,B5 Agency Nursing,E14 5RE,
Medical Division,Emergency Medicine,01/12/2023,B5 Agency Nursing,A&E Nursing,Your Nurse Ltd,EHCX69,995.25,B5 Agency Nursing,E14 5RE,
Surgery & Anaesthetics,Critical Care,01/12/2023,B5 Agency Nursing,Critical Care,Your Nurse Ltd,EHCX69,552,B5 Agency Nursing,E14 5RE,
Surgery & Anaesthetics,General Surgery,01/12/2023,B5 Agency Nursing,Endoscopy,Your Nurse Ltd,EHCX69,2899.5,B5 Agency Nursing,E14 5RE,
Medical Division,Medical Specialities,01/12/2023,B5 Agency Nursing,Gastroenterology,Your Nurse Ltd,EHCX69,950,B5 Agency Nursing,E14 5RE,
Medical Division,Acute Medical,01/12/2023,B5 Agency Nursing,General Medicine,Your Nurse Ltd,EHCX69,2183.17,B5 Agency Nursing,E14 5RE,
Surgery & Anaesthetics,General Surgery,01/12/2023,B5 Agency Nursing,General Surgery,Your Nurse Ltd,EHCX69,3925,B5 Agency Nursing,E14 5RE,
Medical Division,Acute Medical,01/12/2023,B5 Agency Nursing,Geriatric Medicine,Your Nurse Ltd,EHCX69,6626,B5 Agency Nursing,E14 5RE,
Medical Division,Integrated Medical Specialities,01/12/2023,B5 Agency Nursing,Ims Stroke / Rehabilitation,Your Nurse Ltd,EHCX69,3265.5,B5 Agency Nursing,E14 5RE,
Medical Division,Integrated Medical Specialities,01/12/2023,B5 Agency Nursing,Medical Oncology,Your Nurse Ltd,EHCX69,468,B5 Agency Nursing,E14 5RE,
Medical Division,Medical Specialities,01/12/2023,B5 Agency Nursing,Respiratory,Your Nurse Ltd,EHCX69,1328,B5 Agency Nursing,E14 5RE,
Surgery & Anaesthetics,Orthopaedics,01/12/2023,B5 Agency Nursing,Trauma & Orthopaedics,Your Nurse Ltd,EHCX69,2753.5,B5 Agency Nursing,E14 5RE,
Medical Division,Emergency Medicine,13/12/2023,B5 Agency Nursing,A&E Nursing,Your Nurse Ltd,EHCX78,1361,B5 Agency Nursing,E14 5RE,
Corporate Services,RAFT,13/12/2023,B5 Agency Nursing,Central Operations Team CORP,Your Nurse Ltd,EHCX78,4449.5,B5 Agency Nursing,E14 5RE,
Surgery & Anaesthetics,Critical Care,13/12/2023,B5 Agency Nursing,Critical Care,Your Nurse Ltd,EHCX78,2202,B5 Agency Nursing,E14 5RE,
Surgery & Anaesthetics,General Surgery,13/12/2023,B5 Agency Nursing,Endoscopy,Your Nurse Ltd,EHCX78,2844,B5 Agency Nursing,E14 5RE,
Medical Division,Medical Specialities,13/12/2023,B5 Agency Nursing,Gastroenterology,Your Nurse Ltd,EHCX78,508.5,B5 Agency Nursing,E14 5RE,
Medical Division,Acute Medical,13/12/2023,B5 Agency Nursing,General Medicine,Your Nurse Ltd,EHCX78,372,B5 Agency Nursing,E14 5RE,
Surgery & Anaesthetics,General Surgery,13/12/2023,B5 Agency Nursing,General Surgery,Your Nurse Ltd,EHCX78,6802,B5 Agency Nursing,E14 5RE,
Medical Division,Acute Medical,13/12/2023,B5 Agency Nursing,Geriatric Medicine,Your Nurse Ltd,EHCX78,2028.5,B5 Agency Nursing,E14 5RE,
Medical Division,Integrated Medical Specialities,13/12/2023,B5 Agency Nursing,Ims Stroke / Rehabilitation,Your Nurse Ltd,EHCX78,1596,B5 Agency Nursing,E14 5RE,
Medical Division,Integrated Medical Specialities,13/12/2023,B5 Agency Nursing,Medical Oncology,Your Nurse Ltd,EHCX78,2970.5,B5 Agency Nursing,E14 5RE,
Medical Division,Medical Specialities,13/12/2023,B5 Agency Nursing,Respiratory,Your Nurse Ltd,EHCX78,684,B5 Agency Nursing,E14 5RE,
Surgery & Anaesthetics,Orthopaedics,13/12/2023,B5 Agency Nursing,Trauma & Orthopaedics,Your Nurse Ltd,EHCX78,4252,B5 Agency Nursing,E14 5RE,
Medical Division,Emergency Medicine,13/12/2023,B5 Agency Nursing,A&E Nursing,Your Nurse Ltd,EHCX79,807.5,B5 Agency Nursing,E14 5RE,
Medical Division,Medical Specialities,13/12/2023,B5 Agency Nursing,Cardiology,Your Nurse Ltd,EHCX79,2703,B5 Agency Nursing,E14 5RE,
Corporate Services,RAFT,13/12/2023,B5 Agency Nursing,Central Operations Team CORP,Your Nurse Ltd,EHCX79,552,B5 Agency Nursing,E14 5RE,
Surgery & Anaesthetics,Critical Care,13/12/2023,B5 Agency Nursing,Critical Care,Your Nurse Ltd,EHCX79,1660.5,B5 Agency Nursing,E14 5RE,
Surgery & Anaesthetics,General Surgery,13/12/2023,B5 Agency Nursing,Endoscopy,Your Nurse Ltd,EHCX79,1745.5,B5 Agency Nursing,E14 5RE,
Medical Division,Medical Specialities,13/12/2023,B5 Agency Nursing,Gastroenterology,Your Nurse Ltd,EHCX79,4958.25,B5 Agency Nursing,E14 5RE,
Medical Division,Acute Medical,13/12/2023,B5 Agency Nursing,General Medicine,Your Nurse Ltd,EHCX79,537,B5 Agency Nursing,E14 5RE,
Surgery & Anaesthetics,General Surgery,13/12/2023,B5 Agency Nursing,General Surgery,Your Nurse Ltd,EHCX79,444.5,B5 Agency Nursing,E14 5RE,
Medical Division,Acute Medical,13/12/2023,B5 Agency Nursing,Geriatric Medicine,Your Nurse Ltd,EHCX79,6176,B5 Agency Nursing,E14 5RE,
Families & Specialist Services,Womens,13/12/2023,B5 Agency Nursing,Gynaecology,Your Nurse Ltd,EHCX79,2985.5,B5 Agency Nursing,E14 5RE,
Medical Division,Integrated Medical Specialities,13/12/2023,B5 Agency Nursing,Ims Stroke / Rehabilitation,Your Nurse Ltd,EHCX79,1274,B5 Agency Nursing,E14 5RE,
Medical Division,Integrated Medical Specialities,13/12/2023,B5 Agency Nursing,Medical Oncology,Your Nurse Ltd,EHCX79,3628,B5 Agency Nursing,E14 5RE,
Medical Division,Medical Specialities,13/12/2023,B5 Agency Nursing,Respiratory,Your Nurse Ltd,EHCX79,1453.5,B5 Agency Nursing,E14 5RE,
Surgery & Anaesthetics,Orthopaedics,13/12/2023,B5 Agency Nursing,Trauma & Orthopaedics,Your Nurse Ltd,EHCX79,2712,B5 Agency Nursing,E14 5RE,
Medical Division,Emergency Medicine,13/12/2023,B5 Agency Nursing,A&E Nursing,Your Nurse Ltd,EHCX80,2012.84,B5 Agency Nursing,E14 5RE,
Medical Division,Medical Specialities,13/12/2023,B5 Agency Nursing,Cardiology,Your Nurse Ltd,EHCX80,2248,B5 Agency Nursing,E14 5RE,
Corporate Services,RAFT,13/12/2023,B5 Agency Nursing,Central Operations Team CORP,Your Nurse Ltd,EHCX80,537,B5 Agency Nursing,E14 5RE,
Surgery & Anaesthetics,Critical Care,13/12/2023,B5 Agency Nursing,Critical Care,Your Nurse Ltd,EHCX80,937,B5 Agency Nursing,E14 5RE,
Surgery & Anaesthetics,General Surgery,13/12/2023,B5 Agency Nursing,Endoscopy,Your Nurse Ltd,EHCX80,4504.5,B5 Agency Nursing,E14 5RE,
Medical Division,Acute Medical,13/12/2023,B5 Agency Nursing,General Medicine,Your Nurse Ltd,EHCX80,1003.5,B5 Agency Nursing,E14 5RE,
Surgery & Anaesthetics,General Surgery,13/12/2023,B5 Agency Nursing,General Surgery,Your Nurse Ltd,EHCX80,5310,B5 Agency Nursing,E14 5RE,
Medical Division,Acute Medical,13/12/2023,B5 Agency Nursing,Geriatric Medicine,Your Nurse Ltd,EHCX80,2219.33,B5 Agency Nursing,E14 5RE,
Families & Specialist Services,Womens,13/12/2023,B5 Agency Nursing,Gynaecology,Your Nurse Ltd,EHCX80,3901.5,B5 Agency Nursing,E14 5RE,
Medical Division,Integrated Medical Specialities,13/12/2023,B5 Agency Nursing,Ims Stroke / Rehabilitation,Your Nurse Ltd,EHCX80,2346,B5 Agency Nursing,E14 5RE,
Medical Division,Medical Specialities,13/12/2023,B5 Agency Nursing,Respiratory,Your Nurse Ltd,EHCX80,1089,B5 Agency Nursing,E14 5RE,
Surgery & Anaesthetics,Orthopaedics,13/12/2023,B5 Agency Nursing,Trauma & Orthopaedics,Your Nurse Ltd,EHCX80,1348.5,B5 Agency Nursing,E14 5RE,
Medical Division,Emergency Medicine,20/12/2023,B5 Agency Nursing,A&E Nursing,Your Nurse Ltd,EHCX81,451,B5 Agency Nursing,E14 5RE,
Corporate Services,RAFT,20/12/2023,B5 Agency Nursing,Central Operations Team CORP,Your Nurse Ltd,EHCX81,1871.75,B5 Agency Nursing,E14 5RE,
Surgery & Anaesthetics,Critical Care,20/12/2023,B5 Agency Nursing,Critical Care,Your Nurse Ltd,EHCX81,1020,B5 Agency Nursing,E14 5RE,
Surgery & Anaesthetics,General Surgery,20/12/2023,B5 Agency Nursing,Endoscopy,Your Nurse Ltd,EHCX81,1660.5,B5 Agency Nursing,E14 5RE,
Surgery & Anaesthetics,Head & Neck,20/12/2023,B5 Agency Nursing,Ent,Your Nurse Ltd,EHCX81,950,B5 Agency Nursing,E14 5RE,
Medical Division,Medical Specialities,20/12/2023,B5 Agency Nursing,Gastroenterology,Your Nurse Ltd,EHCX81,1404,B5 Agency Nursing,E14 5RE,
Medical Division,Acute Medical,20/12/2023,B5 Agency Nursing,General Medicine,Your Nurse Ltd,EHCX81,1498.5,B5 Agency Nursing,E14 5RE,
Surgery & Anaesthetics,General Surgery,20/12/2023,B5 Agency Nursing,General Surgery,Your Nurse Ltd,EHCX81,852,B5 Agency Nursing,E14 5RE,
Medical Division,Acute Medical,20/12/2023,B5 Agency Nursing,Geriatric Medicine,Your Nurse Ltd,EHCX81,7720.5,B5 Agency Nursing,E14 5RE,
Families & Specialist Services,Womens,20/12/2023,B5 Agency Nursing,Gynaecology,Your Nurse Ltd,EHCX81,4093.67,B5 Agency Nursing,E14 5RE,
Medical Division,Integrated Medical Specialities,20/12/2023,B5 Agency Nursing,Ims Stroke / Rehabilitation,Your Nurse Ltd,EHCX81,3063,B5 Agency Nursing,E14 5RE,
Medical Division,Integrated Medical Specialities,20/12/2023,B5 Agency Nursing,Medical Oncology,Your Nurse Ltd,EHCX81,1580,B5 Agency Nursing,E14 5RE,
Medical Division,Medical Specialities,20/12/2023,B5 Agency Nursing,Respiratory,Your Nurse Ltd,EHCX81,1435.5,B5 Agency Nursing,E14 5RE,
Surgery & Anaesthetics,Orthopaedics,20/12/2023,B5 Agency Nursing,Trauma & Orthopaedics,Your Nurse Ltd,EHCX81,1668.33,B5 Agency Nursing,E14 5RE,
Medical Division,Emergency Medicine,22/12/2023,B5 Agency Nursing,A&E Nursing,Your Nurse Ltd,EHCX82,901.5,B5 Agency Nursing,E14 5RE,
Medical Division,Medical Specialities,22/12/2023,B5 Agency Nursing,Cardiology,Your Nurse Ltd,EHCX82,356.5,B5 Agency Nursing,E14 5RE,
Corporate Services,RAFT,22/12/2023,B5 Agency Nursing,Central Operations Team CORP,Your Nurse Ltd,EHCX82,1438.5,B5 Agency Nursing,E14 5RE,
Surgery & Anaesthetics,General Surgery,22/12/2023,B5 Agency Nursing,Endoscopy,Your Nurse Ltd,EHCX82,2448.5,B5 Agency Nursing,E14 5RE,
Medical Division,Acute Medical,22/12/2023,B5 Agency Nursing,General Medicine,Your Nurse Ltd,EHCX82,1697.25,B5 Agency Nursing,E14 5RE,
Surgery & Anaesthetics,General Surgery,22/12/2023,B5 Agency Nursing,General Surgery,Your Nurse Ltd,EHCX82,4470,B5 Agency Nursing,E14 5RE,
Medical Division,Acute Medical,22/12/2023,B5 Agency Nursing,Geriatric Medicine,Your Nurse Ltd,EHCX82,2447.5,B5 Agency Nursing,E14 5RE,
Families & Specialist Services,Womens,22/12/2023,B5 Agency Nursing,Gynaecology,Your Nurse Ltd,EHCX82,3262,B5 Agency Nursing,E14 5RE,
Medical Division,Integrated Medical Specialities,22/12/2023,B5 Agency Nursing,Ims Stroke / Rehabilitation,Your Nurse Ltd,EHCX82,1464,B5 Agency Nursing,E14 5RE,
Medical Division,Medical Specialities,22/12/2023,B5 Agency Nursing,Respiratory,Your Nurse Ltd,EHCX82,1750.5,B5 Agency Nursing,E14 5RE,
Surgery & Anaesthetics,Orthopaedics,22/12/2023,B5 Agency Nursing,Trauma & Orthopaedics,Your Nurse Ltd,EHCX82,3110,B5 Agency Nursing,E14 5RE,
Medical Division,Emergency Medicine,13/12/2023,B5 Agency Nursing,A&E Nursing,Your Nurse Ltd,YNLX101,422,B5 Agency Nursing,E14 5RE,
Medical Division,Medical Specialities,13/12/2023,B5 Agency Nursing,Cardiology,Your Nurse Ltd,YNLX101,2022.5,B5 Agency Nursing,E14 5RE,
Corporate Services,RAFT,13/12/2023,B5 Agency Nursing,Central Operations Team CORP,Your Nurse Ltd,YNLX101,3320,B5 Agency Nursing,E14 5RE,
Surgery & Anaesthetics,Critical Care,13/12/2023,B5 Agency Nursing,Critical Care,Your Nurse Ltd,YNLX101,844,B5 Agency Nursing,E14 5RE,
Medical Division,Medical Specialities,13/12/2023,B5 Agency Nursing,Gastroenterology,Your Nurse Ltd,YNLX101,4270.5,B5 Agency Nursing,E14 5RE,
Medical Division,Acute Medical,13/12/2023,B5 Agency Nursing,General Medicine,Your Nurse Ltd,YNLX101,5290.5,B5 Agency Nursing,E14 5RE,
Surgery & Anaesthetics,General Surgery,13/12/2023,B5 Agency Nursing,General Surgery,Your Nurse Ltd,YNLX101,5095.5,B5 Agency Nursing,E14 5RE,
Medical Division,Acute Medical,13/12/2023,B5 Agency Nursing,Geriatric Medicine,Your Nurse Ltd,YNLX101,422,B5 Agency Nursing,E14 5RE,
Medical Division,Integrated Medical Specialities,13/12/2023,B5 Agency Nursing,Ims Stroke / Rehabilitation,Your Nurse Ltd,YNLX101,10299.5,B5 Agency Nursing,E14 5RE,
Families & Specialist Services,Childrens & Young Persons Services,13/12/2023,B5 Agency Nursing,Inpatients Paediatrics,Your Nurse Ltd,YNLX101,6254,B5 Agency Nursing,E14 5RE,
Medical Division,Integrated Medical Specialities,13/12/2023,B5 Agency Nursing,Medical Oncology,Your Nurse Ltd,YNLX101,540,B5 Agency Nursing,E14 5RE,
Surgery & Anaesthetics,Operating Services,13/12/2023,B5 Agency Nursing,Operating Services,Your Nurse Ltd,YNLX101,2190,B5 Agency Nursing,E14 5RE,
Medical Division,Medical Specialities,13/12/2023,B5 Agency Nursing,Respiratory,Your Nurse Ltd,YNLX101,8374.5,B5 Agency Nursing,E14 5RE,
Surgery & Anaesthetics,Orthopaedics,13/12/2023,B5 Agency Nursing,Trauma & Orthopaedics,Your Nurse Ltd,YNLX101,7717.5,B5 Agency Nursing,E14 5RE,
Medical Division,Emergency Medicine,13/12/2023,B5 Agency Nursing,A&E Nursing,Your Nurse Ltd,YNLX102,422,B5 Agency Nursing,E14 5RE,
Medical Division,Medical Specialities,13/12/2023,B5 Agency Nursing,Cardiology,Your Nurse Ltd,YNLX102,5611.58,B5 Agency Nursing,E14 5RE,
Corporate Services,RAFT,13/12/2023,B5 Agency Nursing,Central Operations Team CORP,Your Nurse Ltd,YNLX102,495,B5 Agency Nursing,E14 5RE,
Surgery & Anaesthetics,Critical Care,13/12/2023,B5 Agency Nursing,Critical Care,Your Nurse Ltd,YNLX102,6926.5,B5 Agency Nursing,E14 5RE,
Medical Division,Acute Medical,13/12/2023,B5 Agency Nursing,General Medicine,Your Nurse Ltd,YNLX102,1238.5,B5 Agency Nursing,E14 5RE,
Surgery & Anaesthetics,General Surgery,13/12/2023,B5 Agency Nursing,General Surgery,Your Nurse Ltd,YNLX102,2434.5,B5 Agency Nursing,E14 5RE,
Medical Division,Acute Medical,13/12/2023,B5 Agency Nursing,Geriatric Medicine,Your Nurse Ltd,YNLX102,9633.75,B5 Agency Nursing,E14 5RE,
Families & Specialist Services,Womens,13/12/2023,B5 Agency Nursing,Gynaecology,Your Nurse Ltd,YNLX102,990,B5 Agency Nursing,E14 5RE,
Medical Division,Integrated Medical Specialities,13/12/2023,B5 Agency Nursing,Ims Stroke / Rehabilitation,Your Nurse Ltd,YNLX102,8656,B5 Agency Nursing,E14 5RE,
Families & Specialist Services,Childrens & Young Persons Services,13/12/2023,B5 Agency Nursing,Inpatients Paediatrics,Your Nurse Ltd,YNLX102,4563,B5 Agency Nursing,E14 5RE,
Medical Division,Integrated Medical Specialities,13/12/2023,B5 Agency Nursing,Medical Oncology,Your Nurse Ltd,YNLX102,2059.5,B5 Agency Nursing,E14 5RE,
Surgery & Anaesthetics,Operating Services,13/12/2023,B5 Agency Nursing,Operating Services,Your Nurse Ltd,YNLX102,5525.5,B5 Agency Nursing,E14 5RE,
Medical Division,Medical Specialities,13/12/2023,B5 Agency Nursing,Respiratory,Your Nurse Ltd,YNLX102,7231.5,B5 Agency Nursing,E14 5RE,
Surgery & Anaesthetics,Orthopaedics,13/12/2023,B5 Agency Nursing,Trauma & Orthopaedics,Your Nurse Ltd,YNLX102,8803.5,B5 Agency Nursing,E14 5RE,
Medical Division,Emergency Medicine,13/12/2023,B5 Agency Nursing,A&E Nursing,Your Nurse Ltd,YNLX103,2674,B5 Agency Nursing,E14 5RE,
Medical Division,Medical Specialities,13/12/2023,B5 Agency Nursing,Cardiology,Your Nurse Ltd,YNLX103,3985,B5 Agency Nursing,E14 5RE,
Corporate Services,RAFT,13/12/2023,B5 Agency Nursing,Central Operations Team CORP,Your Nurse Ltd,YNLX103,414,B5 Agency Nursing,E14 5RE,
Surgery & Anaesthetics,Critical Care,13/12/2023,B5 Agency Nursing,Critical Care,Your Nurse Ltd,YNLX103,4604.33,B5 Agency Nursing,E14 5RE,
Medical Division,Medical Specialities,13/12/2023,B5 Agency Nursing,Gastroenterology,Your Nurse Ltd,YNLX103,1813,B5 Agency Nursing,E14 5RE,
Medical Division,Acute Medical,13/12/2023,B5 Agency Nursing,General Medicine,Your Nurse Ltd,YNLX103,4288.5,B5 Agency Nursing,E14 5RE,
Surgery & Anaesthetics,General Surgery,13/12/2023,B5 Agency Nursing,General Surgery,Your Nurse Ltd,YNLX103,5480.25,B5 Agency Nursing,E14 5RE,
Medical Division,Acute Medical,13/12/2023,B5 Agency Nursing,Geriatric Medicine,Your Nurse Ltd,YNLX103,2017.5,B5 Agency Nursing,E14 5RE,
Families & Specialist Services,Womens,13/12/2023,B5 Agency Nursing,Gynaecology,Your Nurse Ltd,YNLX103,910.5,B5 Agency Nursing,E14 5RE,
Medical Division,Integrated Medical Specialities,13/12/2023,B5 Agency Nursing,Ims Stroke / Rehabilitation,Your Nurse Ltd,YNLX103,11647.25,B5 Agency Nursing,E14 5RE,
Families & Specialist Services,Childrens & Young Persons Services,13/12/2023,B5 Agency Nursing,Inpatients Paediatrics,Your Nurse Ltd,YNLX103,4135.5,B5 Agency Nursing,E14 5RE,
Medical Division,Integrated Medical Specialities,13/12/2023,B5 Agency Nursing,Medical Oncology,Your Nurse Ltd,YNLX103,1564.5,B5 Agency Nursing,E14 5RE,
Surgery & Anaesthetics,Operating Services,13/12/2023,B5 Agency Nursing,Operating Services,Your Nurse Ltd,YNLX103,4820.34,B5 Agency Nursing,E14 5RE,
Medical Division,Medical Specialities,13/12/2023,B5 Agency Nursing,Respiratory,Your Nurse Ltd,YNLX103,3975,B5 Agency Nursing,E14 5RE,
Surgery & Anaesthetics,Orthopaedics,13/12/2023,B5 Agency Nursing,Trauma & Orthopaedics,Your Nurse Ltd,YNLX103,9170,B5 Agency Nursing,E14 5RE,
Medical Division,Emergency Medicine,20/12/2023,B5 Agency Nursing,A&E Nursing,Your Nurse Ltd,YNLX104,577.15,B5 Agency Nursing,E14 5RE,
Medical Division,Medical Specialities,20/12/2023,B5 Agency Nursing,Cardiology,Your Nurse Ltd,YNLX104,486,B5 Agency Nursing,E14 5RE,
Corporate Services,RAFT,20/12/2023,B5 Agency Nursing,Central Operations Team CORP,Your Nurse Ltd,YNLX104,4395.99,B5 Agency Nursing,E14 5RE,
Surgery & Anaesthetics,Head & Neck,20/12/2023,B5 Agency Nursing,Ent,Your Nurse Ltd,YNLX104,909,B5 Agency Nursing,E14 5RE,
Medical Division,Medical Specialities,20/12/2023,B5 Agency Nursing,Gastroenterology,Your Nurse Ltd,YNLX104,4712.05,B5 Agency Nursing,E14 5RE,
Medical Division,Acute Medical,20/12/2023,B5 Agency Nursing,General Medicine,Your Nurse Ltd,YNLX104,1516,B5 Agency Nursing,E14 5RE,
Surgery & Anaesthetics,General Surgery,20/12/2023,B5 Agency Nursing,General Surgery,Your Nurse Ltd,YNLX104,3746.66,B5 Agency Nursing,E14 5RE,
Medical Division,Acute Medical,20/12/2023,B5 Agency Nursing,Geriatric Medicine,Your Nurse Ltd,YNLX104,7827,B5 Agency Nursing,E14 5RE,
Families & Specialist Services,Womens,20/12/2023,B5 Agency Nursing,Gynaecology,Your Nurse Ltd,YNLX104,984.07,B5 Agency Nursing,E14 5RE,
Medical Division,Integrated Medical Specialities,20/12/2023,B5 Agency Nursing,Ims Stroke / Rehabilitation,Your Nurse Ltd,YNLX104,5982.15,B5 Agency Nursing,E14 5RE,
Families & Specialist Services,Childrens & Young Persons Services,20/12/2023,B5 Agency Nursing,Inpatients Paediatrics,Your Nurse Ltd,YNLX104,4415.27,B5 Agency Nursing,E14 5RE,
Medical Division,Integrated Medical Specialities,20/12/2023,B5 Agency Nursing,Medical Oncology,Your Nurse Ltd,YNLX104,3230.69,B5 Agency Nursing,E14 5RE,
Surgery & Anaesthetics,Operating Services,20/12/2023,B5 Agency Nursing,Operating Services,Your Nurse Ltd,YNLX104,3564,B5 Agency Nursing,E14 5RE,
Medical Division,Medical Specialities,20/12/2023,B5 Agency Nursing,Respiratory,Your Nurse Ltd,YNLX104,5031.54,B5 Agency Nursing,E14 5RE,
Surgery & Anaesthetics,Orthopaedics,20/12/2023,B5 Agency Nursing,Trauma & Orthopaedics,Your Nurse Ltd,YNLX104,7740.2,B5 Agency Nursing,E14 5RE,
Medical Division,Emergency Medicine,22/12/2023,B5 Agency Nursing,A&E Nursing,Your Nurse Ltd,YNLX105,866.5,B5 Agency Nursing,E14 5RE,
Medical Division,Medical Specialities,22/12/2023,B5 Agency Nursing,Cardiology,Your Nurse Ltd,YNLX105,4109,B5 Agency Nursing,E14 5RE,
Corporate Services,RAFT,22/12/2023,B5 Agency Nursing,Central Operations Team CORP,Your Nurse Ltd,YNLX105,729,B5 Agency Nursing,E14 5RE,
Surgery & Anaesthetics,Critical Care,22/12/2023,B5 Agency Nursing,Critical Care,Your Nurse Ltd,YNLX105,5038.17,B5 Agency Nursing,E14 5RE,
Medical Division,Acute Medical,22/12/2023,B5 Agency Nursing,General Medicine,Your Nurse Ltd,YNLX105,300.67,B5 Agency Nursing,E14 5RE,
Surgery & Anaesthetics,General Surgery,22/12/2023,B5 Agency Nursing,General Surgery,Your Nurse Ltd,YNLX105,5940,B5 Agency Nursing,E14 5RE,
Medical Division,Acute Medical,22/12/2023,B5 Agency Nursing,Geriatric Medicine,Your Nurse Ltd,YNLX105,7092.74,B5 Agency Nursing,E14 5RE,
Families & Specialist Services,Womens,22/12/2023,B5 Agency Nursing,Gynaecology,Your Nurse Ltd,YNLX105,1003.5,B5 Agency Nursing,E14 5RE,
Medical Division,Integrated Medical Specialities,22/12/2023,B5 Agency Nursing,Ims Stroke / Rehabilitation,Your Nurse Ltd,YNLX105,6902.17,B5 Agency Nursing,E14 5RE,
Families & Specialist Services,Childrens & Young Persons Services,22/12/2023,B5 Agency Nursing,Inpatients Paediatrics,Your Nurse Ltd,YNLX105,7252,B5 Agency Nursing,E14 5RE,
Medical Division,Integrated Medical Specialities,22/12/2023,B5 Agency Nursing,Medical Oncology,Your Nurse Ltd,YNLX105,1980,B5 Agency Nursing,E14 5RE,
Surgery & Anaesthetics,Operating Services,22/12/2023,B5 Agency Nursing,Operating Services,Your Nurse Ltd,YNLX105,5889.51,B5 Agency Nursing,E14 5RE,
Medical Division,Medical Specialities,22/12/2023,B5 Agency Nursing,Respiratory,Your Nurse Ltd,YNLX105,2586.5,B5 Agency Nursing,E14 5RE,
Surgery & Anaesthetics,Orthopaedics,22/12/2023,B5 Agency Nursing,Trauma & Orthopaedics,Your Nurse Ltd,YNLX105,6288.5,B5 Agency Nursing,E14 5RE,
Medical Division,Emergency Medicine,29/12/2023,B5 Agency Nursing,A&E Nursing,Your Nurse Ltd,YNLX106,"2,199.00 ",B5 Agency Nursing,E14 5RE,
Corporate Services,RAFT,29/12/2023,B5 Agency Nursing,Central Operations Team CORP,Your Nurse Ltd,YNLX106,855.00 ,B5 Agency Nursing,E14 5RE,
Medical Division,Medical Specialities,29/12/2023,B5 Agency Nursing,Gastroenterology,Your Nurse Ltd,YNLX106,"6,359.00 ",B5 Agency Nursing,E14 5RE,
Medical Division,Acute Medical,29/12/2023,B5 Agency Nursing,General Medicine,Your Nurse Ltd,YNLX106,232.50 ,B5 Agency Nursing,E14 5RE,
Surgery & Anaesthetics,General Surgery,29/12/2023,B5 Agency Nursing,General Surgery,Your Nurse Ltd,YNLX106,855.00 ,B5 Agency Nursing,E14 5RE,
Medical Division,Acute Medical,29/12/2023,B5 Agency Nursing,Geriatric Medicine,Your Nurse Ltd,YNLX106,"4,275.74 ",B5 Agency Nursing,E14 5RE,
Families & Specialist Services,Womens,29/12/2023,B5 Agency Nursing,Gynaecology,Your Nurse Ltd,YNLX106,902.00 ,B5 Agency Nursing,E14 5RE,
Medical Division,Integrated Medical Specialities,29/12/2023,B5 Agency Nursing,Ims Stroke / Rehabilitation,Your Nurse Ltd,YNLX106,"11,345.50 ",B5 Agency Nursing,E14 5RE,
Families & Specialist Services,Childrens & Young Persons Services,29/12/2023,B5 Agency Nursing,Inpatients Paediatrics,Your Nurse Ltd,YNLX106,"8,814.84 ",B5 Agency Nursing,E14 5RE,
Medical Division,Integrated Medical Specialities,29/12/2023,B5 Agency Nursing,Medical Oncology,Your Nurse Ltd,YNLX106,"1,551.00 ",B5 Agency Nursing,E14 5RE,
Surgery & Anaesthetics,Operating Services,29/12/2023,B5 Agency Nursing,Operating Services,Your Nurse Ltd,YNLX106,"2,096.00 ",B5 Agency Nursing,E14 5RE,
Medical Division,Medical Specialities,29/12/2023,B5 Agency Nursing,Respiratory,Your Nurse Ltd,YNLX106,"1,107.50 ",B5 Agency Nursing,E14 5RE,
Surgery & Anaesthetics,Orthopaedics,29/12/2023,B5 Agency Nursing,Trauma & Orthopaedics,Your Nurse Ltd,YNLX106,"2,337.51 ",B5 Agency Nursing,E14 5RE,
Medical Division,Emergency Medicine,08/12/2023,B5 Agency Nursing,A&E Nursing,Your Nurse Ltd,YNLX90,422,B5 Agency Nursing,E14 5RE,
Medical Division,Medical Specialities,08/12/2023,B5 Agency Nursing,Cardiology,Your Nurse Ltd,YNLX90,1360,B5 Agency Nursing,E14 5RE,
Surgery & Anaesthetics,Critical Care,08/12/2023,B5 Agency Nursing,Critical Care,Your Nurse Ltd,YNLX90,3512.5,B5 Agency Nursing,E14 5RE,
Surgery & Anaesthetics,Head & Neck,08/12/2023,B5 Agency Nursing,Ent,Your Nurse Ltd,YNLX90,1056,B5 Agency Nursing,E14 5RE,
Medical Division,Medical Specialities,08/12/2023,B5 Agency Nursing,Gastroenterology,Your Nurse Ltd,YNLX90,10385.5,B5 Agency Nursing,E14 5RE,
Medical Division,Acute Medical,08/12/2023,B5 Agency Nursing,General Medicine,Your Nurse Ltd,YNLX90,860,B5 Agency Nursing,E14 5RE,
Surgery & Anaesthetics,General Surgery,08/12/2023,B5 Agency Nursing,General Surgery,Your Nurse Ltd,YNLX90,5660.99,B5 Agency Nursing,E14 5RE,
Medical Division,Acute Medical,08/12/2023,B5 Agency Nursing,Geriatric Medicine,Your Nurse Ltd,YNLX90,9802.5,B5 Agency Nursing,E14 5RE,
Families & Specialist Services,Womens,08/12/2023,B5 Agency Nursing,Gynaecology,Your Nurse Ltd,YNLX90,990,B5 Agency Nursing,E14 5RE,
Medical Division,Integrated Medical Specialities,08/12/2023,B5 Agency Nursing,Ims Stroke / Rehabilitation,Your Nurse Ltd,YNLX90,1724,B5 Agency Nursing,E14 5RE,
Families & Specialist Services,Childrens & Young Persons Services,08/12/2023,B5 Agency Nursing,Inpatients Paediatrics,Your Nurse Ltd,YNLX90,5524,B5 Agency Nursing,E14 5RE,
Medical Division,Integrated Medical Specialities,08/12/2023,B5 Agency Nursing,Medical Oncology,Your Nurse Ltd,YNLX90,9029.84,B5 Agency Nursing,E14 5RE,
Surgery & Anaesthetics,Operating Services,08/12/2023,B5 Agency Nursing,Operating Services,Your Nurse Ltd,YNLX90,3054,B5 Agency Nursing,E14 5RE,
Medical Division,Medical Specialities,08/12/2023,B5 Agency Nursing,Respiratory,Your Nurse Ltd,YNLX90,7070,B5 Agency Nursing,E14 5RE,
Surgery & Anaesthetics,Orthopaedics,08/12/2023,B5 Agency Nursing,Trauma & Orthopaedics,Your Nurse Ltd,YNLX90,3711.51,B5 Agency Nursing,E14 5RE,
